fUSD/lending_fUSD_20260615
["ID","MTS","AMOUNT","RATE_DAILY","PERIOD"]
[425095721,1781490641000,-410.12,0.0001662,2]
[425095720,1781490641000,-10249.09386022,0.000166,2]
[425095707,1781490641000,-151.0,0.00016438,2]
[425095692,1781490641000,-383.0,0.0001619,2]
[425095706,1781490641000,-1049.1,0.00016438,2]
[425095698,1781490641000,-350.0,0.00016291,2]
[425095669,1781490641000,-300.0,0.00016,2]
[425095696,1781490641000,-6078.0,0.0001619,2]
[425095671,1781490641000,-200.478471,0.00016,2]
[425095679,1781490641000,-23817.04,0.00016116,2]
[425095674,1781490641000,-712.0,0.000161,2]
[425095673,1781490641000,-1000.0,0.000161,2]
[425095672,1781490641000,-10249.09386022,0.000161,2]
[425095680,1781490641000,-9888.07,0.00016116,2]
[425095670,1781490641000,-2000.0,0.00016,2]
[425095676,1781490641000,-299.99,0.00016116,4]
[425095677,1781490641000,-506.53,0.00016116,2]
[425095682,1781490641000,-410.12,0.00016145,2]
[425095678,1781490641000,-999.99,0.00016116,2]
[425095684,1781490641000,-150.144,0.00016185,2]
[425095691,1781490641000,-631.398,0.0001619,2]
[425095685,1781490641000,-150.171,0.00016185,2]
[425095700,1781490641000,-410.12,0.00016361,2]
[425095701,1781490641000,-250.0,0.00016398,2]
[425095690,1781490641000,-150.425,0.00016185,2]
[425095689,1781490641000,-190.0,0.00016185,2]
[425095686,1781490641000,-150.0,0.00016185,2]
[425095688,1781490641000,-150.0,0.00016185,2]
[425095683,1781490641000,-410.12,0.00016156,2]
[425095681,1781490641000,-150.99,0.00016116,2]
[425095687,1781490641000,-150.0,0.00016185,2]
[425095739,1781490642000,-482.85,0.00017022,2]
[425095741,1781490642000,-410.12,0.00017097,2]
[425095738,1781490642000,-410.12,0.00017001,2]
[425095740,1781490642000,-410.12,0.00017096,2]
[425095742,1781490642000,-414.32,0.00017112,2]
[425095745,1781490642000,-191.664402,0.00017192,2]
[425095744,1781490642000,-410.12,0.00017185,2]
[425095743,1781490642000,-410.12,0.00017178,2]
[425095747,1781490642000,-300.0,0.00017265,2]
[425095737,1781490642000,-300.0,0.00017,2]
[425095749,1781490642000,-410.12,0.0001727,2]
[425095746,1781490642000,-414.32,0.00017261,2]
[425095736,1781490642000,-410.12,0.00016964,2]
[425095725,1781490642000,-414.32,0.00016742,2]
[425095734,1781490642000,-1613.0535,0.00016963,2]
[425095733,1781490642000,-414.32,0.00016943,2]
[425095732,1781490642000,-670.06,0.00016942,2]
[425095727,1781490642000,-410.12,0.00016788,2]
[425095729,1781490642000,-410.12,0.00016878,2]
[425095730,1781490642000,-410.12,0.00016899,2]
[425095731,1781490642000,-410.13,0.00016931,2]
[425095728,1781490642000,-1444.35,0.00016816,2]
[425095726,1781490642000,-410.12,0.00016747,2]
[425095724,1781490642000,-168.44,0.00016712,2]
[425095722,1781490642000,-410.12,0.00016665,2]
[425095723,1781490642000,-10249.09386022,0.000167,2]
[425095748,1781490642000,-54436.7055601,0.00017266,2]
[425095735,1781490642000,-172.988373,0.00016963,7]
[425095750,1781490642000,-271807.3092332,0.00017276,2]
[425095763,1781490642000,-1391.71,0.000179,2]
[425095752,1781490642000,-254.97,0.00017316,2]
[425095751,1781490642000,-96513.025763,0.00017277,2]
[425095782,1781490642000,-410.12,0.00018391,2]
[425095781,1781490642000,-410.12,0.00018349,2]
[425095780,1781490642000,-410.12,0.00018303,2]
[425095779,1781490642000,-300.01,0.000183,2]
[425095777,1781490642000,-410.12,0.00018255,2]
[425095776,1781490642000,-410.12,0.00018203,2]
[425095773,1781490642000,-410.12,0.00018085,2]
[425095775,1781490642000,-152.84783851,0.00018179,2]
[425095772,1781490642000,-1734.62772924,0.00018059,2]
[425095774,1781490642000,-410.12,0.00018147,2]
[425095771,1781490642000,-410.12,0.00018014,2]
[425095769,1781490642000,-350.0,0.00018,2]
[425095770,1781490642000,-200.0,0.00018,2]
[425095778,1781490642000,-1290.81,0.000183,2]
[425095768,1781490642000,-300.0,0.00018,2]
[425095767,1781490642000,-171.66,0.00018,8]
[425095755,1781490642000,-410.15,0.00017491,2]
[425095753,1781490642000,-414.32,0.00017395,2]
[425095758,1781490642000,-414.32,0.00017519,2]
[425095757,1781490642000,-1672.7364795,0.00017511,2]
[425095756,1781490642000,-169.86,0.00017508,2]
[425095760,1781490642000,-410.12,0.00017821,2]
[425095761,1781490642000,-224.340249,0.00017883,7]
[425095765,1781490642000,-300.0,0.00017953,2]
[425095764,1781490642000,-410.12,0.0001793,2]
[425095766,1781490642000,-49320.4341438,0.00017954,2]
[425095759,1781490642000,-191.664402,0.00017707,2]
[425095754,1781490642000,-191.664402,0.00017449,2]
[425095807,1781490643000,-275.0,0.00019,2]
[425095814,1781490643000,-364.868956,0.00019178,2]
[425095809,1781490643000,-1932.0,0.00019,2]
[425095808,1781490643000,-618.0,0.00019,2]
[425095811,1781490643000,-450.0,0.00019039,7]
[425095810,1781490643000,-1350.0,0.00019039,2]
[425095812,1781490643000,-1865.36488656,0.00019155,2]
[425095813,1781490643000,-364.868956,0.00019178,2]
[425095816,1781490643000,-364.868956,0.00019178,2]
[425095823,1781490643000,-150.0,0.00019185,2]
[425095822,1781490643000,-150.0,0.00019185,2]
[425095819,1781490643000,-150.0,0.00019185,2]
[425095815,1781490643000,-364.868956,0.00019178,2]
[425095821,1781490643000,-150.0,0.00019185,2]
[425095820,1781490643000,-150.0,0.00019185,2]
[425095825,1781490643000,-383.0,0.0001919,2]
[425095804,1781490643000,-269.0,0.00019,2]
[425095817,1781490643000,-151.0,0.00019178,2]
[425095806,1781490643000,-241.0,0.00019,2]
[425095785,1781490643000,-410.12,0.00018471,2]
[425095802,1781490643000,-924.0,0.00019,2]
[425095783,1781490643000,-1049.1,0.0001841,2]
[425095784,1781490643000,-410.12,0.00018432,2]
[425095787,1781490643000,-410.12,0.00018508,2]
[425095788,1781490643000,-165.22766989,0.0001851,2]
[425095786,1781490643000,-670.06,0.00018482,2]
[425095789,1781490643000,-410.12,0.00018544,2]
[425095824,1781490643000,-631.0,0.0001919,2]
[425095790,1781490643000,-482.85,0.00018569,2]
[425095792,1781490643000,-1798.80895522,0.00018607,2]
[425095793,1781490643000,-410.12,0.00018613,2]
[425095794,1781490643000,-254.97,0.0001889,2]
[425095795,1781490643000,-300.0,0.00019,2]
[425095791,1781490643000,-410.12,0.00018579,2]
[425095797,1781490643000,-223.0,0.00019,2]
[425095798,1781490643000,-191.0,0.00019,2]
[425095799,1781490643000,-695.0,0.00019,2]
[425095801,1781490643000,-268.0,0.00019,2]
[425095800,1781490643000,-255.0,0.00019,2]
[425095803,1781490643000,-156.0,0.00019,2]
[425095805,1781490643000,-157.0,0.00019,2]
[425095826,1781490643000,-1275.0,0.0001919,2]
[425095818,1781490643000,-209.129083,0.00019178,2]
[425095827,1781490643000,-1228.0,0.0001919,2]
[425095858,1781490643000,-191.0,0.0002,2]
[425095857,1781490643000,-223.0,0.0002,2]
[425095861,1781490643000,-255.0,0.0002,2]
[425095859,1781490643000,-695.0,0.0002,2]
[425095856,1781490643000,-173.53935065,0.0002,2]
[425095862,1781490643000,-268.0,0.0002,2]
[425095865,1781490643000,-924.0,0.0002,2]
[425095871,1781490643000,-195.042,0.0002,2]
[425095866,1781490643000,-156.0,0.0002,2]
[425095867,1781490643000,-200.0,0.0002,10]
[425095870,1781490643000,-241.0,0.0002,2]
[425095869,1781490643000,-157.0,0.0002,2]
[425095873,1781490643000,-275.0,0.0002,2]
[425095872,1781490643000,-2428.0,0.0002,2]
[425095875,1781490643000,-618.0,0.0002,2]
[425095874,1781490643000,-200.0,0.0002,2]
[425095876,1781490643000,-2000.0,0.0002,7]
[425095877,1781490643000,-1932.0,0.0002,2]
[425095829,1781490643000,-6078.0,0.0001919,2]
[425095855,1781490643000,-400.0,0.0002,2]
[425095853,1781490643000,-802.0,0.0002,2]
[425095868,1781490643000,-269.0,0.0002,2]
[425095851,1781490643000,-3992.57792136,0.0002,2]
[425095830,1781490643000,-573.37,0.00019266,2]
[425095854,1781490643000,-1479.0,0.0002,2]
[425095828,1781490643000,-1359.0,0.0001919,2]
[425095832,1781490643000,-1391.71,0.000193,2]
[425095831,1781490643000,-185.12,0.00019267,2]
[425095836,1781490643000,-641.07457963,0.00019339,7]
[425095835,1781490643000,-185.0,0.00019323,2]
[425095837,1781490643000,-644.12,0.00019372,2]
[425095844,1781490643000,-539.98693961,0.000199,2]
[425095842,1781490643000,-1308.8531932,0.000199,8]
[425095833,1781490643000,-215.08112528,0.000193,2]
[425095838,1781490643000,-1934.38338736,0.00019703,2]
[425095840,1781490643000,-274.81922984,0.000198,2]
[425095846,1781490643000,-210.01209058,0.000199,2]
[425095845,1781490643000,-679.92848542,0.000199,2]
[425095848,1781490643000,-89395.0,0.0002,2]
[425095847,1781490643000,-300.0,0.00019999,2]
[425095849,1781490643000,-299.999999,0.0002,2]
[425095850,1781490643000,-200000.0,0.0002,2]
[425095852,1781490643000,-1418.689983,0.0002,2]
[425095915,1781490644000,-578.20924308,0.00020799,2]
[425095913,1781490644000,-151.0,0.00020799,2]
[425095912,1781490644000,-1280.88388877,0.00020799,2]
[425095908,1781490644000,-151.0,0.00020799,2]
[425095900,1781490644000,-151.0,0.00020799,2]
[425095907,1781490644000,-1191.11104074,0.00020799,2]
[425095899,1781490644000,-1068.11,0.00020799,2]
[425095903,1781490644000,-151.0,0.00020799,2]
[425095914,1781490644000,-1328.27659266,0.00020799,2]
[425095909,1781490644000,-154.67963625,0.00020799,2]
[425095911,1781490644000,-151.0,0.00020799,2]
[425095925,1781490644000,-1536.04360648,0.00020799,2]
[425095917,1781490644000,-1377.42282658,0.00020799,2]
[425095929,1781490644000,-151.0,0.00020799,2]
[425095919,1781490644000,-151.0,0.00020799,2]
[425095920,1781490644000,-209.40437684,0.00020799,2]
[425095918,1781490644000,-209.40437684,0.00020799,2]
[425095921,1781490644000,-1428.38747117,0.00020799,2]
[425095928,1781490644000,-500.0,0.00020799,2]
[425095922,1781490644000,-151.0,0.00020799,2]
[425095923,1781490644000,-1481.2378076,0.00020799,2]
[425095906,1781490644000,-358.31816607,0.00020799,2]
[425095916,1781490644000,-151.0,0.00020799,2]
[425095904,1781490644000,-1148.61238259,0.00020799,2]
[425095881,1781490644000,-2313.0,0.00020128,2]
[425095905,1781490644000,-174.61919141,0.00020799,2]
[425095926,1781490644000,-500.0,0.00020799,2]
[425095879,1781490644000,-482.14,0.00020088,2]
[425095878,1781490644000,-185.12,0.00020088,2]
[425095880,1781490644000,-300.0,0.000201,10]
[425095882,1781490644000,-396.18,0.00020155,2]
[425095885,1781490644000,-644.14,0.00020155,2]
[425095884,1781490644000,-644.12,0.00020155,2]
[425095886,1781490644000,-152.22,0.00020188,2]
[425095883,1781490644000,-573.37,0.00020155,2]
[425095888,1781490644000,-396.18,0.00020194,2]
[425095901,1781490644000,-200.0,0.00020799,2]
[425095887,1781490644000,-482.27,0.00020194,2]
[425095895,1781490644000,-9973.87,0.00020548,2]
[425095889,1781490644000,-173.53935065,0.000202,2]
[425095891,1781490644000,-185.06,0.00020257,2]
[425095893,1781490644000,-173.53935065,0.000204,2]
[425095892,1781490644000,-1049.1,0.00020381,2]
[425095894,1781490644000,-152.84783851,0.0002042,2]
[425095896,1781490644000,-2327.0,0.00020768,2]
[425095897,1781490644000,-470.21437661,0.00020799,2]
[425095898,1781490644000,-1030.0,0.00020799,2]
[425095902,1781490644000,-1107.63007,0.00020799,2]
[425095890,1781490644000,-2005.9555727,0.00020251,2]
[425095924,1781490644000,-151.0,0.00020799,2]
[425095910,1781490644000,-1235.18214925,0.00020799,2]
[425095931,1781490644000,-152.0,0.00020799,2]
[425095956,1781490644000,-151.0,0.00020799,2]
[425095958,1781490644000,-500.0,0.00020799,2]
[425095960,1781490644000,-151.0,0.00020799,2]
[425095961,1781490644000,-500.0,0.00020799,2]
[425095962,1781490644000,-500.0,0.00020799,2]
[425095959,1781490644000,-152.0,0.00020799,2]
[425095963,1781490644000,-151.0,0.00020799,2]
[425095964,1781490644000,-152.0,0.00020799,2]
[425095966,1781490644000,-500.0,0.00020799,2]
[425095968,1781490644000,-152.0,0.00020799,2]
[425095970,1781490644000,-500.0,0.00020799,2]
[425095967,1781490644000,-500.0,0.00020799,2]
[425095972,1781490644000,-152.0,0.00020799,2]
[425095971,1781490644000,-151.0,0.00020799,2]
[425095969,1781490644000,-151.0,0.00020799,2]
[425095973,1781490644000,-500.0,0.00020799,2]
[425095974,1781490644000,-151.0,0.00020799,2]
[425095975,1781490644000,-151.0,0.00020799,2]
[425095979,1781490644000,-151.0,0.00020799,2]
[425095977,1781490644000,-500.0,0.00020799,2]
[425095976,1781490644000,-152.0,0.00020799,2]
[425095978,1781490644000,-151.0,0.00020799,2]
[425095927,1781490644000,-1592.87721992,0.00020799,2]
[425095955,1781490644000,-151.0,0.00020799,2]
[425095953,1781490644000,-152.0,0.00020799,2]
[425095965,1781490644000,-151.0,0.00020799,2]
[425095954,1781490644000,-2080.17592889,0.00020799,2]
[425095957,1781490644000,-500.0,0.00020799,2]
[425095941,1781490644000,-500.0,0.00020799,2]
[425095930,1781490644000,-731.92164327,0.00020799,2]
[425095932,1781490644000,-500.0,0.00020799,2]
[425095933,1781490644000,-721.12765534,0.00020799,2]
[425095934,1781490644000,-151.0,0.00020799,2]
[425095937,1781490644000,-500.0,0.00020799,2]
[425095936,1781490644000,-151.0,0.00020799,2]
[425095935,1781490644000,-151.0,0.00020799,2]
[425095939,1781490644000,-151.0,0.00020799,2]
[425095940,1781490644000,-151.0,0.00020799,2]
[425095942,1781490644000,-152.0,0.00020799,2]
[425095938,1781490644000,-152.0,0.00020799,2]
[425095945,1781490644000,-500.0,0.00020799,2]
[425095947,1781490644000,-500.0,0.00020799,2]
[425095949,1781490644000,-500.0,0.00020799,2]
[425095943,1781490644000,-151.0,0.00020799,2]
[425095951,1781490644000,-151.0,0.00020799,2]
[425095980,1781490644000,-151.0,0.00020799,2]
[425095944,1781490644000,-151.0,0.00020799,2]
[425095946,1781490644000,-209.40437684,0.00020799,2]
[425095952,1781490644000,-500.0,0.00020799,2]
[425095948,1781490644000,-152.0,0.00020799,2]
[425095950,1781490644000,-151.0,0.00020799,2]
[425096019,1781490645000,-1932.0,0.00021,2]
[425096028,1781490645000,-483.06,0.00021016,2]
[425096015,1781490645000,-170.11765912,0.00021,2]
[425096013,1781490645000,-156.0,0.00021,2]
[425096016,1781490645000,-241.0,0.00021,2]
[425096018,1781490645000,-618.0,0.00021,2]
[425096017,1781490645000,-275.0,0.00021,2]
[425096012,1781490645000,-924.0,0.00021,2]
[425096008,1781490645000,-191.0,0.00021,2]
[425096029,1781490645000,-644.28,0.00021016,2]
[425096014,1781490645000,-269.0,0.00021,2]
[425096020,1781490645000,-185.1,0.00021001,2]
[425096039,1781490645000,-396.2,0.00021079,2]
[425096021,1781490645000,-644.12,0.00021001,2]
[425096022,1781490645000,-185.12,0.00021001,2]
[425096025,1781490645000,-573.38,0.00021001,2]
[425096023,1781490645000,-396.18,0.00021001,2]
[425096026,1781490645000,-573.37,0.00021005,2]
[425096024,1781490645000,-319.26,0.00021001,2]
[425096033,1781490645000,-151.0,0.00021019,2]
[425096032,1781490645000,-358.31816607,0.00021019,2]
[425096030,1781490645000,-573.4,0.00021016,2]
[425096031,1781490645000,-185.12,0.00021016,2]
[425096011,1781490645000,-268.0,0.00021,2]
[425096027,1781490645000,-644.12,0.00021016,2]
[425096010,1781490645000,-255.0,0.00021,2]
[425095981,1781490645000,-500.0,0.00020799,2]
[425096007,1781490645000,-223.0,0.00021,2]
[425095982,1781490645000,-151.0,0.00020799,2]
[425096037,1781490645000,-151.0,0.00021074,2]
[425095983,1781490645000,-152.0,0.00020799,2]
[425095985,1781490645000,-151.0,0.00020799,2]
[425095987,1781490645000,-500.0,0.00020799,2]
[425095996,1781490645000,-573.37,0.00020867,2]
[425095988,1781490645000,-151.0,0.00020799,2]
[425095986,1781490645000,-151.0,0.00020799,2]
[425095989,1781490645000,-151.0,0.00020799,2]
[425095990,1781490645000,-500.0,0.00020799,2]
[425095993,1781490645000,-151.0,0.00020854,2]
[425095994,1781490645000,-573.4,0.00020867,2]
[425095995,1781490645000,-396.17,0.00020867,2]
[425095991,1781490645000,-1688.81,0.000208,7]
[425095992,1781490645000,-358.31816607,0.00020854,2]
[425095999,1781490645000,-358.31816607,0.00020964,2]
[425095997,1781490645000,-358.31816607,0.00020909,2]
[425096000,1781490645000,-151.0,0.00020964,2]
[425095998,1781490645000,-151.0,0.00020909,2]
[425096001,1781490645000,-396.18,0.00020976,2]
[425096002,1781490645000,-482.28,0.00020976,2]
[425096003,1781490645000,-300.0,0.00021,2]
[425096004,1781490645000,-1418.689983,0.00021,2]
[425096006,1781490645000,-229.1577,0.00021,30]
[425096005,1781490645000,-1885.03151842,0.00021,2]
[425096009,1781490645000,-695.0,0.00021,2]
[425096034,1781490645000,-180.08459866,0.00021059,2]
[425095984,1781490645000,-500.0,0.00020799,2]
[425096036,1781490645000,-358.31816607,0.00021074,2]
[425096067,1781490645000,-222.064043,0.00021492,2]
[425096071,1781490645000,-222.064043,0.00021492,2]
[425096070,1781490645000,-222.064043,0.00021492,2]
[425096074,1781490645000,-151.0,0.00021492,2]
[425096072,1781490645000,-151.0,0.00021492,2]
[425096075,1781490645000,-151.0,0.00021492,2]
[425096077,1781490645000,-151.0,0.00021492,2]
[425096076,1781490645000,-151.0,0.00021492,2]
[425096087,1781490645000,-151.0,0.000215,2]
[425096086,1781490645000,-151.0,0.000215,2]
[425096078,1781490645000,-151.0,0.00021492,2]
[425096065,1781490645000,-151.0,0.00021489,2]
[425096081,1781490645000,-226.01758824,0.000215,2]
[425096080,1781490645000,-58554.23779167,0.000215,2]
[425096084,1781490645000,-151.0,0.000215,2]
[425096083,1781490645000,-151.0,0.000215,2]
[425096082,1781490645000,-151.0,0.000215,2]
[425096085,1781490645000,-151.0,0.000215,2]
[425096088,1781490645000,-151.0,0.000215,2]
[425096090,1781490645000,-728.300138,0.000215,2]
[425096091,1781490645000,-728.300138,0.000215,2]
[425096092,1781490645000,-728.300138,0.000215,2]
[425096089,1781490645000,-728.300138,0.000215,2]
[425096093,1781490645000,-364.868956,0.000215,2]
[425096079,1781490645000,-300.0,0.00021499,2]
[425096073,1781490645000,-151.0,0.00021492,2]
[425096094,1781490645000,-364.868956,0.000215,2]
[425096064,1781490645000,-1885.03151842,0.000214,2]
[425096069,1781490645000,-222.064043,0.00021492,2]
[425096038,1781490645000,-324.61,0.00021079,2]
[425096040,1781490645000,-358.31816607,0.00021129,2]
[425096042,1781490645000,-358.31816607,0.00021184,2]
[425096041,1781490645000,-151.0,0.00021129,2]
[425096043,1781490645000,-151.0,0.00021184,2]
[425096044,1781490645000,-1885.03151842,0.000212,2]
[425096047,1781490645000,-151.0,0.00021239,2]
[425096046,1781490645000,-358.31816607,0.00021239,2]
[425096045,1781490645000,-1391.71,0.000212,2]
[425096050,1781490645000,-151.0,0.00021294,2]
[425096048,1781490645000,-333.645987,0.00021261,7]
[425096049,1781490645000,-358.31816607,0.00021294,2]
[425096035,1781490645000,-275.0,0.0002107,2]
[425096054,1781490645000,-151.0,0.00021347,2]
[425096052,1781490645000,-200.0,0.00021347,2]
[425096056,1781490645000,-217.15233878,0.00021347,2]
[425096060,1781490645000,-217.15233878,0.00021347,2]
[425096059,1781490645000,-151.0,0.00021347,2]
[425096053,1781490645000,-154.67963625,0.00021347,2]
[425096063,1781490645000,-151.0,0.00021349,2]
[425096058,1781490645000,-151.0,0.00021347,2]
[425096057,1781490645000,-181.08010149,0.00021347,2]
[425096062,1781490645000,-358.31816616,0.00021349,2]
[425096051,1781490645000,-470.21437661,0.00021347,2]
[425096061,1781490645000,-2157.14243826,0.00021347,2]
[425096066,1781490645000,-300.0,0.0002149,2]
[425096131,1781490646000,-185.12,0.00021901,2]
[425096127,1781490646000,-151.0,0.00021895,2]
[425096126,1781490646000,-151.0,0.00021895,2]
[425096125,1781490646000,-187.78006524,0.00021895,2]
[425096132,1781490646000,-185.12,0.00021901,2]
[425096124,1781490646000,-225.18697532,0.00021895,2]
[425096122,1781490646000,-154.67963625,0.00021895,2]
[425096129,1781490646000,-2236.95670847,0.00021895,2]
[425096128,1781490646000,-225.18697532,0.00021895,2]
[425096130,1781490646000,-1885.03151842,0.000219,2]
[425096137,1781490646000,-800.0,0.00021918,2]
[425096136,1781490646000,-800.0,0.00021918,2]
[425096134,1781490646000,-413.0,0.00021912,5]
[425096133,1781490646000,-482.28,0.00021901,2]
[425096143,1781490646000,-800.0,0.00021918,2]
[425096123,1781490646000,-265.50557866,0.00021895,2]
[425096144,1781490646000,-800.0,0.00021918,2]
[425096141,1781490646000,-800.0,0.00021918,2]
[425096142,1781490646000,-800.0,0.00021918,2]
[425096139,1781490646000,-350.53557048,0.00021918,2]
[425096140,1781490646000,-800.0,0.00021918,2]
[425096135,1781490646000,-5000.0,0.00021918,2]
[425096146,1781490646000,-800.0,0.00021918,2]
[425096138,1781490646000,-800.0,0.00021918,2]
[425096118,1781490646000,-164.15080751,0.00021869,7]
[425096113,1781490646000,-441.27,0.00021797,2]
[425096120,1781490646000,-470.21437661,0.00021895,2]
[425096154,1781490646000,-300.0,0.00022,2]
[425096098,1781490646000,-151.0,0.000215,2]
[425096097,1781490646000,-151.0,0.000215,2]
[425096095,1781490646000,-364.868956,0.000215,2]
[425096096,1781490646000,-364.868956,0.000215,2]
[425096099,1781490646000,-151.0,0.000215,2]
[425096101,1781490646000,-151.0,0.000215,2]
[425096100,1781490646000,-151.0,0.000215,2]
[425096108,1781490646000,-573.37,0.00021686,2]
[425096110,1781490646000,-573.37,0.00021689,2]
[425096109,1781490646000,-482.28,0.00021686,2]
[425096102,1781490646000,-151.0,0.000215,2]
[425096105,1781490646000,-573.4,0.00021686,2]
[425096106,1781490646000,-573.37,0.00021686,2]
[425096107,1781490646000,-644.12,0.00021686,2]
[425096103,1781490646000,-223.694321,0.000215,2]
[425096111,1781490646000,-573.37,0.00021689,2]
[425096115,1781490646000,-573.4,0.00021798,2]
[425096116,1781490646000,-184.54,0.00021838,2]
[425096114,1781490646000,-185.13,0.00021797,2]
[425096112,1781490646000,-185.12,0.00021689,2]
[425096117,1781490646000,-412.56,0.00021838,2]
[425096121,1781490646000,-200.0,0.00021895,2]
[425096119,1781490646000,-289.52818638,0.00021869,7]
[425096104,1781490646000,-1885.03151842,0.000216,2]
[425096155,1781490646000,-1418.689983,0.00022,2]
[425096147,1781490646000,-873.93512374,0.00021918,2]
[425096188,1781490646000,-383.0,0.0002219,2]
[425096201,1781490646000,-151.0,0.0002219,2]
[425096190,1781490646000,-1275.0,0.0002219,2]
[425096181,1781490646000,-150.0,0.00022185,2]
[425096192,1781490646000,-1228.0,0.0002219,2]
[425096186,1781490646000,-631.0,0.0002219,2]
[425096195,1781490646000,-1058.597648,0.0002219,2]
[425096199,1781490646000,-1058.597648,0.0002219,2]
[425096197,1781490646000,-1058.597648,0.0002219,2]
[425096204,1781490646000,-1058.597648,0.0002219,2]
[425096225,1781490646000,-279.05637276,0.00022363,7]
[425096211,1781490646000,-2562.18806,0.0002219,2]
[425096223,1781490646000,-1049.1,0.00022353,2]
[425096216,1781490646000,-1359.0,0.0002219,2]
[425096218,1781490646000,-6078.0,0.0002219,2]
[425096213,1781490646000,-2562.18806,0.0002219,2]
[425096206,1781490646000,-2562.18806,0.0002219,2]
[425096221,1781490646000,-308.24,0.000222,2]
[425096227,1781490646000,-209.71320839,0.00022407,2]
[425096230,1781490646000,-209.71320837,0.00022407,2]
[425096232,1781490646000,-209.71320837,0.00022407,2]
[425096234,1781490646000,-243.86531756,0.00022407,2]
[425096145,1781490646000,-800.0,0.00021918,2]
[425096183,1781490646000,-150.0,0.00022185,2]
[425096180,1781490646000,-150.0,0.00022185,2]
[425096208,1781490646000,-2562.18806,0.0002219,2]
[425096172,1781490646000,-279.05637276,0.00022089,7]
[425096173,1781490646000,-244.65173129,0.0002211,2]
[425096152,1781490646000,-3605.19614866,0.00022,30]
[425096148,1781490646000,-150.0,0.00021918,2]
[425096149,1781490646000,-505.15726097,0.00021999,2]
[425096151,1781490646000,-110605.0,0.00022,2]
[425096156,1781490646000,-23083.89349928,0.00022,4]
[425096166,1781490646000,-241.0,0.00022,2]
[425096161,1781490646000,-255.0,0.00022,2]
[425096160,1781490646000,-695.0,0.00022,2]
[425096165,1781490646000,-269.0,0.00022,2]
[425096163,1781490646000,-924.0,0.00022,2]
[425096162,1781490646000,-268.0,0.00022,2]
[425096153,1781490646000,-300.0,0.00022,2]
[425096159,1781490646000,-191.0,0.00022,2]
[425096157,1781490646000,-450.0,0.00022,2]
[425096175,1781490646000,-217.15233878,0.00022168,2]
[425096171,1781490646000,-270.707151,0.00022021,7]
[425096167,1781490646000,-275.0,0.00022,2]
[425096170,1781490646000,-1932.0,0.00022,2]
[425096177,1781490646000,-150.0,0.00022185,2]
[425096179,1781490646000,-150.0,0.00022185,2]
[425096168,1781490646000,-1309.79,0.00022,2]
[425096164,1781490646000,-156.0,0.00022,2]
[425096158,1781490646000,-223.0,0.00022,2]
[425096169,1781490646000,-618.0,0.00022,2]
[425096318,1781490647000,-533.01022379,0.0002271,2]